[Event "January 2 Late 2024"]
[Site "https://www.chess.com"]
[Date "2024.01.02"]
[Round "1"]
[White "Szpar, Milosz"]
[Black "Bochnicka, Vladimir"]
[Result "1-0"]
[Board "53"]
[TimeControl "180+1"]
[WhiteFideId "1184989"]
[BlackFideId "14943450"]
[WhiteElo "2862"]
[BlackElo "2463"]
[WhiteTeam "POL"]
[BlackTeam "SVK"]
[WhiteClock "0:00:10"]
[BlackClock "0:00:00"]

1. e4 {[%clk 0:03:00]}  e5 {[%clk 0:02:50]} 2. Nf3 {[%clk 0:03:00]}  Nc6 {[%clk 0:02:51]} 3. Bb5 {[%clk 0:03:00]}  a6 {[%clk 0:02:51]} 4. Ba4 {[%clk 0:03:00]}  Nf6 {[%clk 0:02:52]} 5. O-O {[%clk 0:03:00]}  b5 {[%clk 0:02:52]} 6. Bb3 {[%clk 0:03:00]}  Bc5 {[%clk 0:02:53]} 7. Nc3 {[%clk 0:03:00]}  O-O {[%clk 0:02:51]} 8. Nd5 {[%clk 0:03:00]}  d6 {[%clk 0:02:46]} 9. Nxf6+ {[%clk 0:02:56]}  Qxf6 {[%clk 0:02:45]} 10. Bd5 {[%clk 0:02:57]}  Bd7 {[%clk 0:02:44]} 11. d3 {[%clk 0:02:50]}  h6 {[%clk 0:02:42]} 12. h3 {[%clk 0:02:50]}  Rab8 {[%clk 0:02:42]} 13. Be3 {[%clk 0:02:47]}  Ne7 {[%clk 0:02:37]} 14. Bb3 {[%clk 0:02:47]}  Ng6 {[%clk 0:02:36]} 15. d4 {[%clk 0:02:47]}  exd4 {[%clk 0:02:32]} 16. Nxd4 {[%clk 0:02:45]}  Nh4 {[%clk 0:02:02]} 17. Kh1 {[%clk 0:01:28]}  Qg6 {[%clk 0:01:40]} 18. Rg1 {[%clk 0:01:09]}  Bxd4 {[%clk 0:01:27]} 19. Bxd4 {[%clk 0:01:02]}  c5 {[%clk 0:01:27]} 20. Bc3 {[%clk 0:00:36]}  c4 {[%clk 0:01:08]} 21. f3 {[%clk 0:00:36]}  cxb3 {[%clk 0:00:54]} 22. axb3 {[%clk 0:00:37]}  f5 {[%clk 0:00:25]} 23. Rxa6 {[%clk 0:00:36]}  fxe4 {[%clk 0:00:13]} 24. Rxd6 {[%clk 0:00:36]}  Be6 {[%clk 0:00:14]} 25. fxe4 {[%clk 0:00:21]}  Qxe4 {[%clk 0:00:13]} 26. Qe1 {[%clk 0:00:22]}  Qxe1 {[%clk 0:00:05]} 27. Bxe1 {[%clk 0:00:23]}  Nf5 {[%clk 0:00:02]} 28. Rxe6 {[%clk 0:00:23]}  Rbe8 {[%clk 0:00:03]} 29. Rxe8 {[%clk 0:00:23]}  Rxe8 {[%clk 0:00:03]} 30. c4 {[%clk 0:00:16]}  Re2 {[%clk 0:00:04]} 31. cxb5 {[%clk 0:00:15]}  Rxb2 {[%clk 0:00:05]} 32. b4 {[%clk 0:00:13]}  Nd4 {[%clk 0:00:04]} 33. b6 {[%clk 0:00:13]}  Kf7 {[%clk 0:00:03]} 34. b7 {[%clk 0:00:12]}  Nc6 {[%clk 0:00:04]} 35. Rf1+ {[%clk 0:00:10]}  Ke6 {[%clk 0:00:04]} 36. Kh2 {[%clk 0:00:10]}  Kd7 {[%clk 0:00:04]} 37. Rf7+ {[%clk 0:00:10]}  Kd6 {[%clk 0:00:03]} 38. Bg3+ {[%clk 0:00:10]}  Kd5 {[%clk 0:00:04]} 39. b8=Q {[%clk 0:00:09]}  Nxb8 {[%clk 0:00:05]} 40. Bxb8 {[%clk 0:00:10]}  Rxb4 {[%clk 0:00:05]} 41. Bg3 {[%clk 0:00:10]}  g6 {[%clk 0:00:01]} 42. Rf6 {[%clk 0:00:10]}  h5 {[%clk 0:00:00]} 43. Rxg6 {[%clk 0:00:10]} 1-0

[Event "January 2 Late 2024"]
[Site "https://www.chess.com"]
[Date "2024.01.02"]
[Round "1"]
[White "Lopusiewicz, Piotr"]
[Black "Batsuren, Dambasuren"]
[Result "0-1"]
[Board "54"]
[TimeControl "180+1"]
[WhiteFideId "1116029"]
[BlackFideId "4902920"]
[WhiteElo "2461"]
[BlackElo "2860"]
[WhiteTeam "POL"]
[BlackTeam "MGL"]
[WhiteClock "0:00:28"]
[BlackClock "0:00:46"]

1. d4 {[%clk 0:03:00]}  Nf6 {[%clk 0:02:59]} 2. c4 {[%clk 0:03:01]}  c5 {[%clk 0:02:59]} 3. d5 {[%clk 0:03:01]}  e6 {[%clk 0:03:00]} 4. Nc3 {[%clk 0:03:01]}  exd5 {[%clk 0:03:01]} 5. cxd5 {[%clk 0:03:01]}  d6 {[%clk 0:03:02]} 6. Nf3 {[%clk 0:03:01]}  g6 {[%clk 0:03:02]} 7. Bf4 {[%clk 0:03:02]}  Bg7 {[%clk 0:03:02]} 8. e3 {[%clk 0:03:02]}  O-O {[%clk 0:03:03]} 9. h3 {[%clk 0:03:02]}  Na6 {[%clk 0:02:55]} 10. Bxa6 {[%clk 0:03:01]}  bxa6 {[%clk 0:02:55]} 11. Rc1 {[%clk 0:03:02]}  a5 {[%clk 0:02:01]} 12. O-O {[%clk 0:02:54]}  Ba6 {[%clk 0:02:00]} 13. Re1 {[%clk 0:02:54]}  Re8 {[%clk 0:02:01]} 14. e4 {[%clk 0:02:40]}  Rb8 {[%clk 0:01:56]} 15. Qd2 {[%clk 0:02:35]}  Rb4 {[%clk 0:01:51]} 16. e5 {[%clk 0:02:30]}  dxe5 {[%clk 0:01:39]} 17. Nxe5 {[%clk 0:02:29]}  Rd4 {[%clk 0:01:28]} 18. Nc6 {[%clk 0:02:07]}  Rxd2 {[%clk 0:01:26]} 19. Nxd8 {[%clk 0:02:07]}  Rxe1+ {[%clk 0:01:16]} 20. Rxe1 {[%clk 0:02:07]}  Rxb2 {[%clk 0:01:16]} 21. d6 {[%clk 0:01:44]}  Bf8 {[%clk 0:01:14]} 22. Na4 {[%clk 0:01:39]}  Rb4 {[%clk 0:01:12]} 23. Be5 {[%clk 0:01:30]}  Nd7 {[%clk 0:01:12]} 24. Nc3 {[%clk 0:01:21]}  Nxe5 {[%clk 0:01:10]} 25. Rxe5 {[%clk 0:01:21]}  Bxd6 {[%clk 0:01:11]} 26. Re8+ {[%clk 0:01:21]}  Kg7 {[%clk 0:01:11]} 27. g3 {[%clk 0:01:15]}  Rb8 {[%clk 0:01:02]} 28. Ne4 {[%clk 0:00:50]}  Bb5 {[%clk 0:00:55]} 29. Nxf7 {[%clk 0:00:34]}  Bxe8 {[%clk 0:00:47]} 30. Nfxd6 {[%clk 0:00:32]}  Rb1+ {[%clk 0:00:45]} 31. Kh2 {[%clk 0:00:32]}  Bc6 {[%clk 0:00:46]} 32. g4 {[%clk 0:00:30]}  Bxe4 {[%clk 0:00:46]} 33. Nxe4 {[%clk 0:00:28]}  c4 {[%clk 0:00:46]} 0-1

[Event "January 2 Late 2024"]
[Site "https://www.chess.com"]
[Date "2024.01.02"]
[Round "1"]
[White "Mahdavi, Reza"]
[Black "Vujacic, Igor"]
[Result "1-0"]
[Board "55"]
[TimeControl "180+1"]
[WhiteFideId "12595926"]
[BlackFideId "932620"]
[WhiteElo "2859"]
[BlackElo "2459"]
[WhiteTeam "IRI"]
[BlackTeam "MNE"]
[WhiteClock "0:01:01"]
[BlackClock "0:00:00"]

1. e4 {[%clk 0:03:00]}  c5 {[%clk 0:03:00]} 2. Nf3 {[%clk 0:03:00]}  Nc6 {[%clk 0:03:00]} 3. d4 {[%clk 0:03:00]}  cxd4 {[%clk 0:03:01]} 4. Nxd4 {[%clk 0:03:00]}  g6 {[%clk 0:03:01]} 5. c4 {[%clk 0:03:00]}  Nf6 {[%clk 0:03:02]} 6. Be3 {[%clk 0:03:01]}  Nxe4 {[%clk 0:03:01]} 7. Bd3 {[%clk 0:02:58]}  Qa5+ {[%clk 0:02:54]} 8. Nd2 {[%clk 0:02:54]}  Nxd2 {[%clk 0:02:53]} 9. Qxd2 {[%clk 0:02:55]}  Qxd2+ {[%clk 0:02:52]} 10. Kxd2 {[%clk 0:02:56]}  Bg7 {[%clk 0:02:49]} 11. Nb5 {[%clk 0:02:55]}  O-O {[%clk 0:02:48]} 12. Rab1 {[%clk 0:02:53]}  d6 {[%clk 0:02:43]} 13. Be4 {[%clk 0:02:51]}  Bf5 {[%clk 0:02:12]} 14. Bxf5 {[%clk 0:02:49]}  gxf5 {[%clk 0:02:13]} 15. Ke2 {[%clk 0:02:47]}  a6 {[%clk 0:02:10]} 16. Nc7 {[%clk 0:02:45]}  Rac8 {[%clk 0:02:00]} 17. Nd5 {[%clk 0:02:45]}  Rfe8 {[%clk 0:01:56]} 18. Nb6 {[%clk 0:02:23]}  Rc7 {[%clk 0:01:55]} 19. Rhd1 {[%clk 0:02:23]}  Ne5 {[%clk 0:01:35]} 20. b3 {[%clk 0:02:22]}  Ng4 {[%clk 0:01:35]} 21. h3 {[%clk 0:02:22]}  Nxe3 {[%clk 0:01:34]} 22. Kxe3 {[%clk 0:02:22]}  Rc6 {[%clk 0:01:19]} 23. Nd5 {[%clk 0:02:21]}  Kf8 {[%clk 0:01:14]} 24. Kf3 {[%clk 0:02:17]}  b5 {[%clk 0:01:04]} 25. cxb5 {[%clk 0:02:00]}  axb5 {[%clk 0:01:05]} 26. Rdc1 {[%clk 0:02:01]}  Rec8 {[%clk 0:00:58]} 27. Rxc6 {[%clk 0:02:01]}  Rxc6 {[%clk 0:00:58]} 28. a4 {[%clk 0:02:02]}  e6 {[%clk 0:00:43]} 29. Ne3 {[%clk 0:01:55]}  bxa4 {[%clk 0:00:38]} 30. bxa4 {[%clk 0:01:56]}  Ra6 {[%clk 0:00:36]} 31. Rb4 {[%clk 0:01:54]}  d5 {[%clk 0:00:34]} 32. g4 {[%clk 0:01:50]}  Bc3 {[%clk 0:00:32]} 33. Rb8+ {[%clk 0:01:48]}  Kg7 {[%clk 0:00:29]} 34. gxf5 {[%clk 0:01:49]}  Rxa4 {[%clk 0:00:29]} 35. fxe6 {[%clk 0:01:49]}  fxe6 {[%clk 0:00:30]} 36. Rb7+ {[%clk 0:01:49]}  Kg6 {[%clk 0:00:30]} 37. Rb6 {[%clk 0:01:46]}  Kf7 {[%clk 0:00:20]} 38. Rb7+ {[%clk 0:01:47]}  Kg6 {[%clk 0:00:18]} 39. Rb6 {[%clk 0:01:46]}  Kf7 {[%clk 0:00:09]} 40. Rc6 {[%clk 0:01:46]}  Bd4 {[%clk 0:00:08]} 41. Ng4 {[%clk 0:01:44]}  Ra3+ {[%clk 0:00:07]} 42. Kf4 {[%clk 0:01:45]}  Rxh3 {[%clk 0:00:06]} 43. Kg5 {[%clk 0:01:43]}  Rh1 {[%clk 0:00:03]} 44. Rc7+ {[%clk 0:01:43]}  Ke8 {[%clk 0:00:03]} 45. f4 {[%clk 0:01:38]}  Rg1 {[%clk 0:00:03]} 46. Rxh7 {[%clk 0:01:38]}  Bc3 {[%clk 0:00:03]} 47. Rc7 {[%clk 0:01:30]}  Bb2 {[%clk 0:00:02]} 48. Kh5 {[%clk 0:01:19]}  Rh1+ {[%clk 0:00:02]} 49. Kg5 {[%clk 0:01:15]}  Rf1 {[%clk 0:00:02]} 50. Rb7 {[%clk 0:01:10]}  Bc1 {[%clk 0:00:02]} 51. Kf6 {[%clk 0:01:04]}  Rxf4+ {[%clk 0:00:02]} 52. Kxe6 {[%clk 0:01:05]}  Re4+ {[%clk 0:00:00]} 53. Ne5 {[%clk 0:01:01]} 1-0

[Event "January 2 Late 2024"]
[Site "https://www.chess.com"]
[Date "2024.01.02"]
[Round "1"]
[White "Toktomushev, Teimur"]
[Black "Melkumyan, Hrant"]
[Result "0-1"]
[Board "56"]
[TimeControl "180+1"]
[WhiteFideId "14176726"]
[BlackFideId "13302485"]
[WhiteElo "2458"]
[BlackElo "2855"]
[WhiteTeam "UKR"]
[BlackTeam "ARM"]
[WhiteClock "0:00:00"]
[BlackClock "0:00:05"]

1. d4 {[%clk 0:03:00]}  Nf6 {[%clk 0:02:57]} 2. c4 {[%clk 0:02:59]}  g6 {[%clk 0:02:55]} 3. Nc3 {[%clk 0:02:59]}  Bg7 {[%clk 0:02:55]} 4. e4 {[%clk 0:02:59]}  d6 {[%clk 0:02:55]} 5. f3 {[%clk 0:03:00]}  O-O {[%clk 0:02:51]} 6. Be3 {[%clk 0:03:00]}  a6 {[%clk 0:02:50]} 7. Qd2 {[%clk 0:02:58]}  c5 {[%clk 0:02:48]} 8. Nge2 {[%clk 0:02:57]}  Nc6 {[%clk 0:02:47]} 9. O-O-O {[%clk 0:02:55]}  cxd4 {[%clk 0:02:40]} 10. Nxd4 {[%clk 0:02:56]}  Bd7 {[%clk 0:02:41]} 11. h4 {[%clk 0:02:54]}  Rc8 {[%clk 0:02:33]} 12. Nxc6 {[%clk 0:02:48]}  Rxc6 {[%clk 0:02:28]} 13. Bh6 {[%clk 0:02:48]}  Qa5 {[%clk 0:02:09]} 14. Kb1 {[%clk 0:02:35]}  Rfc8 {[%clk 0:01:34]} 15. Nd5 {[%clk 0:01:52]}  Qxd2 {[%clk 0:01:30]} 16. Nxe7+ {[%clk 0:01:38]}  Kf8 {[%clk 0:01:28]} 17. Bxg7+ {[%clk 0:01:39]}  Kxe7 {[%clk 0:01:28]} 18. Bxf6+ {[%clk 0:01:12]}  Kxf6 {[%clk 0:01:27]} 19. Rxd2 {[%clk 0:01:13]}  Be6 {[%clk 0:01:27]} 20. b3 {[%clk 0:01:10]}  b5 {[%clk 0:01:23]} 21. cxb5 {[%clk 0:00:48]}  Rc1+ {[%clk 0:01:24]} 22. Kb2 {[%clk 0:00:49]}  axb5 {[%clk 0:01:24]} 23. g3 {[%clk 0:00:37]}  Ke7 {[%clk 0:01:01]} 24. Bg2 {[%clk 0:00:34]}  R1c3 {[%clk 0:01:00]} 25. Rhd1 {[%clk 0:00:29]}  b4 {[%clk 0:00:55]} 26. g4 {[%clk 0:00:18]}  h6 {[%clk 0:00:52]} 27. g5 {[%clk 0:00:17]}  hxg5 {[%clk 0:00:45]} 28. hxg5 {[%clk 0:00:18]}  R8c5 {[%clk 0:00:46]} 29. f4 {[%clk 0:00:17]}  Rg3 {[%clk 0:00:45]} 30. Bh1 {[%clk 0:00:08]}  Rg4 {[%clk 0:00:45]} 31. f5 {[%clk 0:00:08]}  gxf5 {[%clk 0:00:44]} 32. exf5 {[%clk 0:00:09]}  Rxf5 {[%clk 0:00:44]} 33. Rxd6 {[%clk 0:00:08]}  Rgxg5 {[%clk 0:00:44]} 34. R6d2 {[%clk 0:00:06]}  Re5 {[%clk 0:00:37]} 35. Bf3 {[%clk 0:00:03]}  Rg3 {[%clk 0:00:35]} 36. Be2 {[%clk 0:00:03]}  Rge3 {[%clk 0:00:35]} 37. Bd3 {[%clk 0:00:04]}  f5 {[%clk 0:00:34]} 38. Bc2 {[%clk 0:00:04]}  Kf6 {[%clk 0:00:28]} 39. Rd4 {[%clk 0:00:04]}  Rb5 {[%clk 0:00:28]} 40. Rf4 {[%clk 0:00:04]}  Re2 {[%clk 0:00:28]} 41. Kb1 {[%clk 0:00:03]}  Ke5 {[%clk 0:00:23]} 42. Rh4 {[%clk 0:00:02]}  Re3 {[%clk 0:00:19]} 43. Rc1 {[%clk 0:00:02]}  Bd5 {[%clk 0:00:18]} 44. Rf1 {[%clk 0:00:03]}  Rf3 {[%clk 0:00:14]} 45. Rxf3 {[%clk 0:00:02]}  Bxf3 {[%clk 0:00:14]} 46. Rh8 {[%clk 0:00:02]}  Kf4 {[%clk 0:00:13]} 47. Rf8 {[%clk 0:00:02]}  Bg4 {[%clk 0:00:10]} 48. Kb2 {[%clk 0:00:03]}  Ke3 {[%clk 0:00:09]} 49. a3 {[%clk 0:00:02]}  bxa3+ {[%clk 0:00:10]} 50. Kxa3 {[%clk 0:00:03]}  f4 {[%clk 0:00:11]} 51. b4 {[%clk 0:00:03]}  f3 {[%clk 0:00:11]} 52. Bd1 {[%clk 0:00:03]}  Rb7 {[%clk 0:00:06]} 53. Bxf3 {[%clk 0:00:03]}  Bxf3 {[%clk 0:00:06]} 54. Re8+ {[%clk 0:00:02]}  Kd4 {[%clk 0:00:06]} 55. Rd8+ {[%clk 0:00:02]}  Bd5 {[%clk 0:00:06]} 56. Rh8 {[%clk 0:00:02]}  Ra7+ {[%clk 0:00:05]} 57. Kb2 {[%clk 0:00:02]}  Ra2+ {[%clk 0:00:05]} 58. Kb1 {[%clk 0:00:03]}  Rg2 {[%clk 0:00:06]} 59. Rh4+ {[%clk 0:00:03]}  Be4+ {[%clk 0:00:06]} 60. Kc1 {[%clk 0:00:02]}  Kc3 {[%clk 0:00:07]} 61. Rh3+ {[%clk 0:00:01]}  Bd3 {[%clk 0:00:06]} 62. Rh1 {[%clk 0:00:00]}  Ra2 {[%clk 0:00:05]} 0-1

[Event "January 2 Late 2024"]
[Site "https://www.chess.com"]
[Date "2024.01.02"]
[Round "1"]
[White "Plotnikov, Pavel"]
[Black "Mekhitarian, Krikor Sevag"]
[Result "0-1"]
[Board "60"]
[TimeControl "180+1"]
[WhiteFideId "4170342"]
[BlackFideId "2107660"]
[WhiteElo "2454"]
[BlackElo "2840"]
[WhiteTeam "RUS"]
[BlackTeam "BRA"]
[WhiteClock "0:00:00"]
[BlackClock "0:00:30"]

1. e4 {[%clk 0:02:57]}  e6 {[%clk 0:03:00]} 2. d4 {[%clk 0:02:57]}  d5 {[%clk 0:03:00]} 3. e5 {[%clk 0:02:57]}  c5 {[%clk 0:03:00]} 4. c3 {[%clk 0:02:58]}  Nc6 {[%clk 0:03:01]} 5. Nf3 {[%clk 0:02:58]}  Bd7 {[%clk 0:03:02]} 6. a3 {[%clk 0:02:58]}  Nh6 {[%clk 0:03:01]} 7. b4 {[%clk 0:02:54]}  cxd4 {[%clk 0:03:01]} 8. cxd4 {[%clk 0:02:55]}  Nf5 {[%clk 0:03:00]} 9. Be3 {[%clk 0:02:37]}  b5 {[%clk 0:02:56]} 10. Bd3 {[%clk 0:02:27]}  a5 {[%clk 0:02:54]} 11. bxa5 {[%clk 0:02:23]}  Nxa5 {[%clk 0:02:35]} 12. O-O {[%clk 0:02:15]}  Nc4 {[%clk 0:02:35]} 13. Bxf5 {[%clk 0:02:06]}  exf5 {[%clk 0:02:35]} 14. Qb3 {[%clk 0:01:59]}  Be7 {[%clk 0:02:31]} 15. Nc3 {[%clk 0:01:58]}  Bc6 {[%clk 0:02:25]} 16. Nxb5 {[%clk 0:01:48]}  O-O {[%clk 0:02:25]} 17. a4 {[%clk 0:01:47]}  h6 {[%clk 0:02:20]} 18. Nd2 {[%clk 0:01:37]}  Na5 {[%clk 0:02:02]} 19. Qc2 {[%clk 0:01:32]}  Qd7 {[%clk 0:02:00]} 20. Rab1 {[%clk 0:01:16]}  Rfc8 {[%clk 0:01:58]} 21. Qd3 {[%clk 0:01:10]}  Nc4 {[%clk 0:01:59]} 22. Nxc4 {[%clk 0:00:52]}  dxc4 {[%clk 0:01:58]} 23. Qc2 {[%clk 0:00:49]}  Be4 {[%clk 0:01:51]} 24. Qa2 {[%clk 0:00:39]}  Bxb1 {[%clk 0:01:44]} 25. Rxb1 {[%clk 0:00:40]}  c3 {[%clk 0:01:42]} 26. Qc2 {[%clk 0:00:34]}  Qd5 {[%clk 0:01:31]} 27. g3 {[%clk 0:00:28]}  Qc4 {[%clk 0:01:20]} 28. Ra1 {[%clk 0:00:22]}  h5 {[%clk 0:01:02]} 29. h4 {[%clk 0:00:21]}  g6 {[%clk 0:01:00]} 30. Nd6 {[%clk 0:00:17]}  Bxd6 {[%clk 0:00:58]} 31. exd6 {[%clk 0:00:18]}  Qd5 {[%clk 0:00:56]} 32. Bg5 {[%clk 0:00:15]}  Qxd6 {[%clk 0:00:54]} 33. Qc1 {[%clk 0:00:12]}  c2 {[%clk 0:00:52]} 34. Bf4 {[%clk 0:00:09]}  Qxd4 {[%clk 0:00:47]} 35. Be3 {[%clk 0:00:09]}  Qe4 {[%clk 0:00:44]} 36. a5 {[%clk 0:00:09]}  Rd8 {[%clk 0:00:40]} 37. Bd2 {[%clk 0:00:07]}  Ra6 {[%clk 0:00:37]} 38. Ra2 {[%clk 0:00:06]}  Rc8 {[%clk 0:00:32]} 39. Bh6 {[%clk 0:00:04]}  Qd3 {[%clk 0:00:31]} 40. Bd2 {[%clk 0:00:00]}  Rd6 {[%clk 0:00:30]} 0-1

[Event "January 2 Late 2024"]
[Site "https://www.chess.com"]
[Date "2024.01.02"]
[Round "1"]
[White "Riehle, Marco"]
[Black "Peczely, Sebastian Zsombor"]
[Result "0-1"]
[Board "61"]
[TimeControl "180+1"]
[WhiteFideId "12904392"]
[BlackFideId "750964"]
[WhiteElo "2840"]
[BlackElo "2451"]
[WhiteTeam "GER"]
[BlackTeam "HUN"]
[WhiteClock "0:02:41"]
[BlackClock "0:02:09"]

1. e4 {[%clk 0:03:00]}  c5 {[%clk 0:02:58]} 2. a3 {[%clk 0:03:00]}  d5 {[%clk 0:02:51]} 3. exd5 {[%clk 0:02:59]}  Qxd5 {[%clk 0:02:52]} 4. Nc3 {[%clk 0:02:59]}  Qd8 {[%clk 0:02:50]} 5. Nf3 {[%clk 0:03:00]}  Nc6 {[%clk 0:02:49]} 6. Bb5 {[%clk 0:02:58]}  Bd7 {[%clk 0:02:48]} 7. O-O {[%clk 0:02:57]}  a6 {[%clk 0:02:48]} 8. Bxc6 {[%clk 0:02:54]}  Bxc6 {[%clk 0:02:49]} 9. Ne5 {[%clk 0:02:55]}  Qc7 {[%clk 0:02:43]} 10. Nxc6 {[%clk 0:02:52]}  Qxc6 {[%clk 0:02:43]} 11. d4 {[%clk 0:02:52]}  cxd4 {[%clk 0:02:39]} 12. Qxd4 {[%clk 0:02:53]}  Rd8 {[%clk 0:02:32]} 13. Qh4 {[%clk 0:02:49]}  Nf6 {[%clk 0:02:32]} 14. Bg5 {[%clk 0:02:41]}  Nd5 {[%clk 0:02:09]} 0-1

[Event "January 2 Late 2024"]
[Site "https://www.chess.com"]
[Date "2024.01.02"]
[Round "1"]
[White "Bachmann, Axel"]
[Black "Sanchez Alvares, Kelvin Antonio"]
[Result "1-0"]
[Board "63"]
[TimeControl "180+1"]
[WhiteFideId "3700488"]
[BlackFideId "3906680"]
[WhiteElo "2828"]
[BlackElo "2447"]
[WhiteTeam "PAR"]
[BlackTeam "VEN"]
[WhiteClock "0:02:29"]
[BlackClock "0:00:12"]

1. Nf3 {[%clk 0:02:58]}  d5 {[%clk 0:02:55]} 2. e3 {[%clk 0:02:58]}  Nf6 {[%clk 0:02:53]} 3. c4 {[%clk 0:02:59]}  c6 {[%clk 0:02:52]} 4. Nc3 {[%clk 0:02:59]}  e6 {[%clk 0:02:36]} 5. b3 {[%clk 0:02:58]}  Be7 {[%clk 0:02:32]} 6. Bb2 {[%clk 0:02:59]}  O-O {[%clk 0:02:32]} 7. d4 {[%clk 0:02:59]}  Nbd7 {[%clk 0:02:29]} 8. Bd3 {[%clk 0:02:59]}  b6 {[%clk 0:02:28]} 9. O-O {[%clk 0:02:59]}  Bb7 {[%clk 0:02:29]} 10. Qe2 {[%clk 0:03:00]}  c5 {[%clk 0:02:19]} 11. cxd5 {[%clk 0:02:59]}  Nxd5 {[%clk 0:02:16]} 12. Nxd5 {[%clk 0:02:59]}  Bxd5 {[%clk 0:02:17]} 13. Rfd1 {[%clk 0:02:58]}  cxd4 {[%clk 0:02:03]} 14. Nxd4 {[%clk 0:02:59]}  Nc5 {[%clk 0:02:02]} 15. Bc4 {[%clk 0:02:49]}  Qc7 {[%clk 0:01:11]} 16. Bxd5 {[%clk 0:02:47]}  exd5 {[%clk 0:01:11]} 17. Nf5 {[%clk 0:02:48]}  Ne6 {[%clk 0:00:52]} 18. Rac1 {[%clk 0:02:44]}  Qb7 {[%clk 0:00:49]} 19. Rxd5 {[%clk 0:02:44]}  Bc5 {[%clk 0:00:34]} 20. Rcd1 {[%clk 0:02:38]}  Rfd8 {[%clk 0:00:17]} 21. Rxd8+ {[%clk 0:02:37]}  Rxd8 {[%clk 0:00:18]} 22. Rxd8+ {[%clk 0:02:38]}  Nxd8 {[%clk 0:00:18]} 23. Nxg7 {[%clk 0:02:38]}  Qd5 {[%clk 0:00:17]} 24. e4 {[%clk 0:02:36]}  Qg5 {[%clk 0:00:17]} 25. Nh5 {[%clk 0:02:29]}  Ne6 {[%clk 0:00:17]} 26. Nf6+ {[%clk 0:02:29]}  Kf8 {[%clk 0:00:12]} 27. Nxh7+ {[%clk 0:02:29]} 1-0

[Event "January 2 Late 2024"]
[Site "https://www.chess.com"]
[Date "2024.01.02"]
[Round "1"]
[White "Sliwicki, Damian"]
[Black "Kadric, Denis"]
[Result "0-1"]
[Board "64"]
[TimeControl "180+1"]
[WhiteFideId "1127128"]
[BlackFideId "14403803"]
[WhiteElo "2447"]
[BlackElo "2823"]
[WhiteTeam "POL"]
[BlackTeam "MNE"]
[WhiteClock "0:00:08"]
[BlackClock "0:00:02"]

1. e4 {[%clk 0:02:04]}  d6 {[%clk 0:03:00]} 2. d4 {[%clk 0:02:04]}  Nf6 {[%clk 0:03:00]} 3. Nc3 {[%clk 0:02:05]}  Nbd7 {[%clk 0:02:59]} 4. Bg5 {[%clk 0:01:54]}  e5 {[%clk 0:02:57]} 5. Nf3 {[%clk 0:01:54]}  c6 {[%clk 0:02:52]} 6. Bc4 {[%clk 0:01:53]}  Be7 {[%clk 0:02:52]} 7. Qd2 {[%clk 0:01:52]}  O-O {[%clk 0:02:52]} 8. O-O-O {[%clk 0:01:52]}  b5 {[%clk 0:02:52]} 9. Bd3 {[%clk 0:01:51]}  Bb7 {[%clk 0:02:49]} 10. Ne2 {[%clk 0:01:45]}  h6 {[%clk 0:02:45]} 11. h4 {[%clk 0:01:45]}  hxg5 {[%clk 0:02:36]} 12. hxg5 {[%clk 0:01:46]}  Nh7 {[%clk 0:02:35]} 13. Kb1 {[%clk 0:01:39]}  Nxg5 {[%clk 0:02:24]} 14. Nxg5 {[%clk 0:01:40]}  Bxg5 {[%clk 0:02:24]} 15. f4 {[%clk 0:01:35]}  exf4 {[%clk 0:02:15]} 16. Nxf4 {[%clk 0:01:31]}  c5 {[%clk 0:02:15]} 17. g3 {[%clk 0:01:20]}  c4 {[%clk 0:02:14]} 18. Be2 {[%clk 0:00:30]}  Bxe4 {[%clk 0:02:11]} 19. Rh5 {[%clk 0:00:29]}  g6 {[%clk 0:01:56]} 20. Rh3 {[%clk 0:00:21]}  Nf6 {[%clk 0:01:50]} 21. Rdh1 {[%clk 0:00:21]}  Bxh1 {[%clk 0:01:49]} 22. Rxh1 {[%clk 0:00:20]}  Ne4 {[%clk 0:01:35]} 23. Qe3 {[%clk 0:00:20]}  d5 {[%clk 0:01:33]} 24. Qg1 {[%clk 0:00:15]}  Kg7 {[%clk 0:01:30]} 25. Bf3 {[%clk 0:00:14]}  Nd2+ {[%clk 0:01:27]} 26. Ka1 {[%clk 0:00:13]}  Nxf3 {[%clk 0:01:28]} 27. Qe3 {[%clk 0:00:12]}  Qf6 {[%clk 0:01:18]} 28. Qxf3 {[%clk 0:00:12]}  Bxf4 {[%clk 0:01:18]} 29. gxf4 {[%clk 0:00:13]}  Rh8 {[%clk 0:01:19]} 30. Rg1 {[%clk 0:00:12]}  Rh4 {[%clk 0:01:14]} 31. a3 {[%clk 0:00:13]}  Rxf4 {[%clk 0:01:13]} 32. Qxd5 {[%clk 0:00:12]}  Rd8 {[%clk 0:01:14]} 33. Qg2 {[%clk 0:00:09]}  Rfxd4 {[%clk 0:01:12]} 34. Rh1 {[%clk 0:00:09]}  Rd1+ {[%clk 0:01:13]} 35. Ka2 {[%clk 0:00:09]}  Rxh1 {[%clk 0:01:12]} 36. Qxh1 {[%clk 0:00:10]}  Rd2 {[%clk 0:01:11]} 37. c3 {[%clk 0:00:07]}  Qxc3 {[%clk 0:01:06]} 38. Qc1 {[%clk 0:00:07]}  Qxc1 {[%clk 0:01:01]} 39. a4 {[%clk 0:00:08]}  Qxb2# {[%clk 0:00:02]} 0-1

[Event "January 2 Late 2024"]
[Site "https://www.chess.com"]
[Date "2024.01.02"]
[Round "1"]
[White "Bouget, Alexandre"]
[Black "Cabarkapa, Novak"]
[Result "0-1"]
[Board "72"]
[TimeControl "180+1"]
[WhiteFideId "681318"]
[BlackFideId "943746"]
[WhiteElo "2438"]
[BlackElo "2813"]
[WhiteTeam "FRA"]
[BlackTeam "SRB"]
[WhiteClock "0:00:42"]
[BlackClock "0:01:31"]

1. d4 {[%clk 0:03:00]}  g6 {[%clk 0:02:58]} 2. h4 {[%clk 0:02:57]}  Nf6 {[%clk 0:02:57]} 3. Nc3 {[%clk 0:02:56]}  d5 {[%clk 0:02:54]} 4. Bg5 {[%clk 0:02:53]}  Bg7 {[%clk 0:02:50]} 5. Qd2 {[%clk 0:02:51]}  c6 {[%clk 0:02:50]} 6. Bxf6 {[%clk 0:02:45]}  Bxf6 {[%clk 0:02:47]} 7. h5 {[%clk 0:02:46]}  b5 {[%clk 0:02:39]} 8. hxg6 {[%clk 0:02:44]}  hxg6 {[%clk 0:02:40]} 9. Rxh8+ {[%clk 0:02:43]}  Bxh8 {[%clk 0:02:41]} 10. Nf3 {[%clk 0:02:42]}  Qa5 {[%clk 0:02:36]} 11. Qh6 {[%clk 0:02:29]}  Bf6 {[%clk 0:02:35]} 12. Qh7 {[%clk 0:02:24]}  b4 {[%clk 0:02:32]} 13. Qg8+ {[%clk 0:02:23]}  Kd7 {[%clk 0:02:32]} 14. Nd1 {[%clk 0:02:14]}  b3+ {[%clk 0:02:29]} 15. c3 {[%clk 0:02:10]}  Qxa2 {[%clk 0:02:29]} 16. Rc1 {[%clk 0:02:08]}  Kc7 {[%clk 0:02:22]} 17. Qxf7 {[%clk 0:02:02]}  Bf5 {[%clk 0:02:19]} 18. Ne5 {[%clk 0:01:52]}  Nd7 {[%clk 0:02:15]} 19. g4 {[%clk 0:01:47]}  Rf8 {[%clk 0:02:11]} 20. Qh7 {[%clk 0:01:46]}  Bc2 {[%clk 0:01:52]} 21. Qh6 {[%clk 0:01:06]}  Bxe5 {[%clk 0:01:44]} 22. dxe5 {[%clk 0:01:04]}  Bxd1 {[%clk 0:01:44]} 23. Rxd1 {[%clk 0:01:01]}  Qxb2 {[%clk 0:01:44]} 24. e6 {[%clk 0:01:01]}  Qxc3+ {[%clk 0:01:44]} 25. Qd2 {[%clk 0:00:54]}  Qxd2+ {[%clk 0:01:40]} 26. Rxd2 {[%clk 0:00:55]}  Nc5 {[%clk 0:01:32]} 27. e3 {[%clk 0:00:42]}  a5 {[%clk 0:01:31]} 0-1